fUSD/lending_fUSD_20250905
["ID","MTS","AMOUNT","RATE_DAILY","PERIOD"]
[383778462,1757111734506,-500.0,0.00038999,2]
[383778463,1757111734533,-500.0,0.00038999,2]
[383778464,1757111734560,-500.0,0.00038999,2]
[383778465,1757111734587,-800.0,0.00039162,5]
[383778466,1757111734613,-400.0,0.00039178,10]
[383778467,1757111734639,-400.0,0.00039178,10]
[383778468,1757111734666,-400.0,0.00039178,10]
[383778469,1757111734692,-400.0,0.00039178,10]
[383778470,1757111734718,-400.0,0.00039178,10]
[383778471,1757111734745,-400.0,0.00039178,10]
[383778472,1757111734772,-485.83,0.00039178,10]
[383778473,1757111734798,-400.0,0.00039452,10]
[383778474,1757111734825,-400.0,0.00039452,10]
[383778475,1757111734853,-400.0,0.00039452,10]
[383778476,1757111734887,-400.0,0.00039452,10]
[383778477,1757111734913,-400.0,0.00039452,10]
[383778478,1757111734941,-400.0,0.00039452,10]
[383778479,1757111734968,-485.83,0.00039452,10]
[383778480,1757111734994,-400.0,0.00039726,10]
[383778481,1757111735021,-400.0,0.00039726,10]
[383778482,1757111735049,-400.0,0.00039726,10]
[383778483,1757111735075,-400.0,0.00039726,10]
[383778484,1757111735102,-400.0,0.00039726,10]
[383778485,1757111735129,-349.24064001,0.00039726,10]
[383778486,1757111811592,250.0,0.00015,2]
[383778487,1757111812664,300.0,0.00017,2]
[383778488,1757111843818,500.0,0.00031089,7]
[383778489,1757111844859,500.0,0.00030647,7]
[383778490,1757111853725,276.52,0.00034029,2]
[383778491,1757112005545,408.93,0.0002302,2]
[383778492,1757112005744,408.93,0.00024232,2]
[383778493,1757112005960,408.93,0.00025443,2]
[383778494,1757112006201,408.93,0.00026655,2]
[383778495,1757112006407,408.93,0.00027867,2]
[383778496,1757112006617,408.93,0.00029078,2]
[383778497,1757112006824,408.93,0.0003029,2]
[383778498,1757112007030,408.93,0.00031501,2]
[383778499,1757112007243,408.93,0.00032713,2]
[383778500,1757112007461,408.93,0.00033925,2]
[383778501,1757112067203,150.0,0.00018327,2]
[383778502,1757112128084,1132.387779,7.945e-05,2]
[383778505,1757112183093,210.0,0.00038089,30]
[383778508,1757112249244,12765.0,0.00038089,30]
[383778512,1757112372386,214.70460184,0.000249,2]
[383778513,1757112400278,155.56,0.00013699,2]
[383778514,1757112400508,155.56,0.00021918,2]
[383778515,1757112400948,155.56,0.00030137,2]
[383778516,1757112463778,200.0,0.00035,5]
[383778517,1757112464037,200.0,0.0003,2]
[383778518,1757112464269,200.0,0.00025,2]
[383778519,1757112464520,200.0,0.00024,2]
[383778520,1757112464757,200.0,0.00023,2]
[383778521,1757112465012,200.0,0.00022,2]
[383778522,1757112465298,200.0,0.00021,2]
[383778523,1757112465554,200.0,0.0002,2]
[383778524,1757112546744,257.6455222,0.000249,2]
[383778525,1757112623211,-375.32176814,0.00035036,2]
[383778526,1757112623236,-150.0,0.000351,2]
[383778527,1757112623265,-408.93,0.00035136,2]
[383778528,1757112623290,-375.32176812,0.00035226,2]
[383778529,1757112623316,-375.32176812,0.00035416,2]
[383778530,1757112623342,-177.39360547,0.00035516,2]
[383778531,1757112623369,-200.0,0.00035615,30]
[383778532,1757112623400,-400.0,0.00035615,2]
[383778533,1757112623425,-500.0,0.00035616,10]
[383778534,1757112623454,-500.0,0.00035616,10]
[383778535,1757112623479,-500.0,0.00035616,10]
[383778536,1757112623504,-400.0,0.00035616,10]
[383778537,1757112623530,-400.0,0.00035616,2]
[383778538,1757112623556,-400.0,0.00035616,10]
[383778539,1757112623583,-400.0,0.00035616,10]
[383778540,1757112623609,-460.68,0.00035616,10]
[383778541,1757112623634,-400.0,0.00035616,10]
[383778542,1757112623660,-400.0,0.00035616,10]
[383778543,1757112623685,-400.0,0.00035616,10]
[383778544,1757112623710,-400.0,0.00035616,10]
[383778545,1757112623737,-400.0,0.00035616,10]
[383778546,1757112623764,-400.0,0.00035616,10]
[383778547,1757112623792,-400.0,0.00035616,10]
[383778548,1757112623823,-1828.42,0.00035616,5]
[383778549,1757112623849,-400.0,0.00035616,10]
[383778550,1757112623876,-400.0,0.00035616,10]
[383778551,1757112623904,-400.0,0.00035616,10]
[383778552,1757112623933,-337.22448815,0.00035616,10]
[383778553,1757112623959,-235.96894045,0.00035616,10]
[383778554,1757112623985,-414.20773672,0.00035616,10]
[383778555,1757112624011,-414.05296179,0.00035616,10]
[383778556,1757112624037,-400.68,0.00035616,10]
[383778557,1757112624063,-400.0,0.00035616,10]
[383778558,1757112624089,-400.0,0.00035616,10]
[383778559,1757112624114,-404.82873512,0.0003589,10]
[383778560,1757112624139,-343.17118955,0.0003589,2]
[383778561,1757112624164,-400.0,0.0003589,10]
[383778562,1757112624192,-400.0,0.0003589,10]
[383778563,1757112624217,-460.68,0.0003589,10]
[383778564,1757112624244,-400.0,0.0003589,10]
[383778565,1757112624271,-400.0,0.0003589,10]
[383778566,1757112624295,-400.0,0.0003589,10]
[383778567,1757112624319,-400.0,0.0003589,10]
[383778568,1757112624358,-400.0,0.0003589,10]
[383778569,1757112624384,-400.0,0.0003589,10]
[383778570,1757112624409,-400.0,0.0003589,10]
[383778571,1757112624434,-1828.42,0.0003589,5]
[383778572,1757112624460,-525.93,0.0003589,10]
[383778573,1757112624486,-400.0,0.0003589,10]
[383778574,1757112624512,-400.0,0.0003589,10]
[383778575,1757112624539,-185.69587169,0.00036163,15]
[383778576,1757112624567,-400.0,0.00036164,10]
[383778577,1757112624593,-400.0,0.00036164,10]
[383778578,1757112624623,-460.68,0.00036164,10]
[383778579,1757112624649,-400.0,0.00036164,10]
[383778580,1757112624674,-400.0,0.00036164,10]
[383778581,1757112624699,-400.0,0.00036164,10]
[383778582,1757112624725,-400.0,0.00036164,10]
[383778583,1757112624750,-400.0,0.00036164,10]
[383778584,1757112624776,-400.0,0.00036164,10]
[383778585,1757112624803,-400.0,0.00036164,10]
[383778586,1757112624828,-1828.42,0.00036164,5]
[383778587,1757112624854,-400.0,0.00036164,10]
[383778588,1757112624879,-153.113199,0.00036164,10]
[383778589,1757112624905,-469.24510799,0.00036164,10]
[383778590,1757112624930,-678.604981,0.00036164,10]
[383778591,1757112624955,-153.113189,0.00036164,10]
[383778592,1757112624982,-339.30249,0.00036164,10]
[383778593,1757112625011,-408.93,0.00036348,2]
[383778594,1757112625036,-1000.0,0.00036437,2]
[383778595,1757112625061,-400.0,0.00036438,10]
[383778596,1757112625087,-221.352514,0.00036438,10]
[383778597,1757112625117,-460.68,0.00036438,10]
[383778598,1757112625348,-400.0,0.00036438,10]
[383778599,1757112625376,-400.0,0.00036438,10]
[383778600,1757112625403,-400.0,0.00036438,10]
[383778601,1757112625430,-400.0,0.00036438,10]
[383778602,1757112625456,-400.0,0.00036438,10]
[383778603,1757112625483,-400.0,0.00036438,10]
[383778604,1757112625508,-336.726,0.00036438,45]
[383778605,1757112625534,-400.0,0.00036438,10]
[383778606,1757112625560,-1828.42,0.00036438,5]
[383778607,1757112625585,-400.0,0.00036438,10]
[383778608,1757112625610,-500.0,0.0003665,5]
[383778609,1757112625636,-502.96413441,0.0003665,5]
[383778610,1757112625659,-173.55781361,0.0003665,5]
[383778611,1757112625684,-500.0,0.00036653,7]
[383778612,1757112625709,-400.0,0.00036712,10]
[383778613,1757112625735,-460.68,0.00036712,10]
[383778614,1757112625759,-400.0,0.00036712,10]
[383778615,1757112625783,-400.0,0.00036712,10]
[383778616,1757112625810,-400.0,0.00036712,10]
[383778617,1757112625835,-400.0,0.00036712,10]
[383778618,1757112625860,-400.0,0.00036712,10]
[383778619,1757112625886,-400.0,0.00036712,10]
[383778620,1757112625911,-400.0,0.00036712,10]
[383778621,1757112625935,-1828.42,0.00036712,5]
[383778622,1757112625960,-400.0,0.00036712,10]
[383778623,1757112625984,-900.0,0.00036756,13]
[383778624,1757112626008,-900.0,0.00036756,13]
[383778625,1757112626034,-900.0,0.00036756,13]
[383778626,1757112626058,-176.88013964,0.00036821,2]
[383778627,1757112626083,-176.88013964,0.00036821,2]
[383778628,1757112626109,-177.39360547,0.00036886,2]
[383778629,1757112626135,-342.43139108,0.00036938,7]
[383778630,1757112626161,-400.0,0.00036986,10]
[383778631,1757112626189,-460.68,0.00036986,10]
[383778632,1757112626213,-400.0,0.00036986,10]
[383778633,1757112626239,-400.0,0.00036986,10]
[383778634,1757112626264,-400.0,0.00036986,10]
[383778635,1757112626290,-400.0,0.00036986,10]
[383778636,1757112626314,-400.0,0.00036986,10]
[383778637,1757112626340,-456.69131674,0.00036986,10]
[383778638,1757112626366,-1828.42,0.00036986,5]
[383778639,1757112626391,-400.0,0.00036986,10]
[383778640,1757112626415,-500.0,0.00037198,5]
[383778641,1757112626439,-400.0,0.0003726,10]
[383778642,1757112626463,-460.68,0.0003726,10]
[383778643,1757112626487,-400.0,0.0003726,10]
[383778644,1757112626510,-400.0,0.0003726,10]
[383778645,1757112626535,-400.0,0.0003726,10]
[383778646,1757112626559,-400.0,0.0003726,10]
[383778647,1757112626584,-400.0,0.0003726,10]
[383778648,1757112626609,-1828.42,0.0003726,5]
[383778649,1757112626635,-400.0,0.0003726,10]
[383778650,1757112626660,-400.0,0.00037534,10]
[383778651,1757112626684,-460.68,0.00037534,10]
[383778652,1757112626709,-400.0,0.00037534,10]
[383778653,1757112626738,-400.0,0.00037534,10]
[383778654,1757112626764,-400.0,0.00037534,10]
[383778655,1757112626789,-400.0,0.00037534,10]
[383778656,1757112626818,-400.0,0.00037534,10]
[383778657,1757112626843,-1828.42,0.00037534,5]
[383778658,1757112626868,-400.0,0.00037534,10]
[383778659,1757112626895,-408.93,0.00037559,2]
[383778660,1757112626919,-5000.0,0.00037685,2]
[383778661,1757112626943,-400.0,0.00037808,10]
[383778662,1757112626968,-460.68,0.00037808,10]
[383778663,1757112626995,-400.0,0.00037808,10]
[383778664,1757112627019,-400.0,0.00037808,10]
[383778665,1757112627044,-400.0,0.00037808,10]
[383778666,1757112627069,-356.08,0.00037808,10]
[383778667,1757112627093,-400.0,0.00037808,10]
[383778668,1757112627120,-1828.42,0.00037808,5]
[383778669,1757112627146,-400.0,0.00037808,10]
[383778670,1757112627172,-500.0,0.00037949,5]
[383778671,1757112627200,-159.0,0.00038,120]
[383778672,1757112627227,-161.0,0.00038,120]
[383778673,1757112627254,-400.0,0.00038082,10]
[383778674,1757112627281,-460.68,0.00038082,10]
[383778675,1757112627307,-400.0,0.00038082,10]
[383778676,1757112627331,-400.0,0.00038082,10]
[383778677,1757112627356,-400.0,0.00038082,10]
[383778678,1757112627381,-400.0,0.00038082,10]
[383778679,1757112627405,-1828.42,0.00038082,5]
[383778680,1757112627431,-400.0,0.00038082,10]
[383778681,1757112627457,-560.0,0.00038163,2]
[383778682,1757112627482,-501.83870628,0.00038188,5]
[383778683,1757112627508,-160.0,0.00038326,7]
[383778684,1757112627533,-400.0,0.00038356,10]
[383778685,1757112627557,-460.68,0.00038356,10]
[383778686,1757112627605,-400.0,0.00038356,10]
[383778687,1757112627631,-400.0,0.00038356,10]
[383778688,1757112627656,-400.0,0.00038356,10]
[383778689,1757112627680,-400.0,0.00038356,10]
[383778690,1757112627705,-1828.42,0.00038356,5]
[383778691,1757112627730,-400.0,0.00038356,10]
[383778692,1757112627754,-155.56,0.00038356,2]
[383778693,1757112627777,-4389.71,0.00038539,2]
[383778694,1757112627803,-250.0,0.00038539,2]
[383778695,1757112627827,-220.44041154,0.00038543,5]
[383778696,1757112627853,-500.0,0.00038543,5]
[383778697,1757112627877,-500.0,0.00038543,5]
[383778698,1757112627902,-200.0,0.00038556,2]
[383778699,1757112627926,-500.0,0.00038557,5]
[383778700,1757112627951,-400.0,0.0003863,10]
[383778701,1757112627977,-460.68,0.0003863,10]
[383778702,1757112628002,-400.0,0.0003863,10]
[383778703,1757112628028,-400.0,0.0003863,10]
[383778704,1757112628055,-400.0,0.0003863,10]
[383778705,1757112628081,-492.55928102,0.0003863,10]
[383778706,1757112628107,-1828.42,0.0003863,5]
[383778707,1757112628134,-400.0,0.0003863,10]
[383778708,1757112628162,-408.93,0.00038771,2]
[383778709,1757112628186,-150.0,0.000388,7]
[383778710,1757112628211,-400.0,0.00038904,10]
[383778711,1757112628237,-460.68,0.00038904,10]
[383778712,1757112628261,-400.0,0.00038904,10]
[383778713,1757112628285,-400.0,0.00038904,10]
[383778714,1757112628312,-400.0,0.00038904,10]
[383778715,1757112628336,-1828.42,0.00038904,5]
[383778716,1757112628362,-400.0,0.00038904,10]
[383778717,1757112628387,-18646.6844234,0.00039046,2]
[383778718,1757112628412,-24526.5946402,0.00039046,2]
[383778719,1757112628438,-556.5185882,0.00039046,2]
[383778720,1757112628465,-257.6455222,0.00039048,32]
[383778721,1757112628491,-280.0,0.00039177,30]
[383778722,1757112628516,-400.0,0.00039178,10]
[383778723,1757112628540,-460.68,0.00039178,10]
[383778724,1757112628564,-400.0,0.00039178,10]
[383778725,1757112628590,-400.0,0.00039178,10]
[383778726,1757112628615,-400.0,0.00039178,10]
[383778727,1757112628641,-1828.42,0.00039178,5]
[383778728,1757112628666,-400.0,0.00039178,10]
[383778729,1757112628692,-2842.86175353,0.00039352,2]
[383778730,1757112628718,-156.48916893,0.00039352,2]
[383778731,1757112628744,-400.0,0.00039452,10]
[383778732,1757112628768,-460.68,0.00039452,10]
[383778733,1757112628795,-400.0,0.00039452,10]
[383778734,1757112628821,-351.46298864,0.00039452,10]
[383778735,1757112628845,-400.0,0.00039452,10]
[383778736,1757112628869,-1828.42,0.00039452,5]
[383778737,1757112628894,-400.0,0.00039452,10]
[383778738,1757112628919,-168.3888056,0.00039725,10]
[383778739,1757112628946,-400.0,0.00039726,10]
[383778740,1757112628973,-460.68,0.00039726,10]
[383778741,1757112628999,-400.0,0.00039726,10]
[383778742,1757112629029,-400.0,0.00039726,10]
[383778743,1757112629055,-1828.42,0.00039726,5]
[383778744,1757112629086,-400.0,0.00039726,10]
[383778745,1757112629114,-408.93,0.00039982,2]
[383778746,1757112629142,-400.0,0.0004,10]
[383778747,1757112629168,-460.68,0.0004,10]
[383778748,1757112629193,-400.0,0.0004,10]
[383778749,1757112629218,-200.0,0.0004,120]
[383778750,1757112629243,-400.0,0.0004,10]
[383778751,1757112629267,-1828.42,0.0004,5]
[383778752,1757112629292,-400.0,0.0004,10]
[383778753,1757112629316,-200.0,0.00040002,2]
[383778754,1757112629340,-500.0,0.00040205,3]
[383778755,1757112629365,-400.0,0.00040273,10]
[383778756,1757112629390,-460.68,0.00040273,10]
[383778757,1757112629420,-400.0,0.00040273,10]
[383778758,1757112629446,-293.983852,0.00040273,10]
[383778759,1757112629471,-1828.42,0.00040273,5]
[383778760,1757112629497,-521.75995887,0.00040273,10]
[383778761,1757112629523,-593.27,0.00040301,30]
[383778762,1757112629547,-602.82,0.00040314,30]
[383778763,1757112629571,-594.4,0.00040331,30]
[383778764,1757112629598,-605.63,0.00040355,30]
[383778765,1757112629633,-604.17,0.0004039,30]
[383778766,1757112629658,-604.74,0.0004044,30]
[383778767,1757112629687,-599.8,0.0004051,30]
[383778768,1757112629713,-400.0,0.00040547,10]
[383778769,1757112629739,-460.68,0.00040547,10]
[383778770,1757112629767,-332.28456767,0.00040547,10]
[383778771,1757112629795,-1828.42,0.00040547,5]
[383778772,1757112629825,-603.69,0.00040611,30]
[383778773,1757112629852,-602.82,0.00040751,30]
[383778774,1757112629876,-387.0052184,0.00040821,10]
[383778775,1757112629901,-460.68,0.00040821,10]
[383778776,1757112629927,-1828.42,0.00040821,5]
[383778777,1757112629953,-460.68,0.00041095,120]
[383778778,1757112629979,-1828.42,0.00041095,5]
[383778779,1757112630004,-500.0,0.00041096,30]
[383778780,1757112630032,-500.0,0.00041096,30]
[383778781,1757112630056,-500.0,0.00041096,30]
[383778782,1757112630080,-500.0,0.00041096,30]
[383778783,1757112630107,-500.0,0.00041096,30]
[383778784,1757112630134,-500.0,0.00041096,30]
[383778785,1757112630159,-500.0,0.00041096,30]
[383778786,1757112630184,-500.0,0.00041096,30]
[383778787,1757112630208,-500.0,0.00041096,30]
[383778788,1757112630233,-500.0,0.00041096,30]
[383778789,1757112630258,-500.0,0.00041096,30]
[383778790,1757112630283,-500.0,0.00041096,30]
[383778791,1757112630306,-500.0,0.00041096,30]
[383778792,1757112630333,-500.0,0.00041096,30]
[383778793,1757112630358,-500.0,0.00041096,30]
[383778794,1757112630382,-500.0,0.00041096,30]
[383778795,1757112630406,-500.0,0.00041096,30]
[383778796,1757112630431,-500.0,0.00041096,30]
[383778797,1757112630456,-500.0,0.00041096,30]
[383778798,1757112630480,-500.0,0.00041096,30]
[383778799,1757112630505,-500.0,0.00041096,30]
[383778800,1757112630533,-500.0,0.00041096,30]
[383778801,1757112630560,-500.0,0.00041096,30]
[383778802,1757112630588,-500.0,0.00041096,30]
[383778803,1757112630615,-500.0,0.00041096,30]
[383778804,1757112630640,-500.0,0.00041096,30]
[383778805,1757112630667,-500.0,0.00041096,30]
[383778806,1757112630695,-500.0,0.00041096,30]
[383778807,1757112630722,-500.0,0.00041096,30]
[383778808,1757112630748,-500.0,0.00041096,30]
[383778809,1757112630774,-500.0,0.00041096,30]
[383778810,1757112630802,-500.0,0.00041096,30]
[383778811,1757112630827,-500.0,0.00041096,30]
[383778812,1757112630853,-500.0,0.00041096,30]
[383778813,1757112630879,-500.0,0.00041096,30]
[383778814,1757112630907,-500.0,0.00041096,30]
[383778815,1757112630936,-500.0,0.00041096,30]
[383778816,1757112630965,-500.0,0.00041096,30]
[383778817,1757112630992,-500.0,0.00041096,30]
[383778818,1757112631018,-500.0,0.00041096,30]
[383778819,1757112631043,-500.0,0.00041096,30]
[383778820,1757112631151,-500.0,0.00041096,30]
[383778821,1757112631178,-500.0,0.00041096,30]
[383778822,1757112631203,-500.0,0.00041096,30]
[383778823,1757112631229,-500.0,0.00041096,30]
[383778824,1757112631254,-500.0,0.00041096,30]
[383778825,1757112631279,-500.0,0.00041096,30]
[383778826,1757112631304,-500.0,0.00041096,30]
[383778827,1757112631330,-500.0,0.00041096,30]
[383778828,1757112631355,-500.0,0.00041096,30]
[383778829,1757112631380,-500.0,0.00041096,30]
[383778831,1757112631406,-500.0,0.00041096,30]
[383778832,1757112631432,-500.0,0.00041096,30]
[383778833,1757112631458,-500.0,0.00041096,30]
[383778834,1757112631487,-500.0,0.00041096,30]
[383778835,1757112631530,-500.0,0.00041096,30]
[383778836,1757112631555,-389.0,0.00041096,30]
[383778837,1757112631580,-309.0,0.00041096,120]
[383778838,1757112631606,-500.0,0.00041096,30]
[383778839,1757112631637,-500.0,0.00041096,30]
[383778840,1757112631666,-500.0,0.00041096,30]
[383778841,1757112631692,-500.0,0.00041096,30]
[383778842,1757112631716,-500.0,0.00041096,30]
[383778843,1757112631741,-500.0,0.00041096,30]
[383778844,1757112631766,-500.0,0.00041096,30]
[383778845,1757112631791,-500.0,0.00041096,30]
[383778846,1757112631819,-500.0,0.00041096,30]
[383778847,1757112631844,-500.0,0.00041096,30]
[383778848,1757112631869,-500.0,0.00041096,30]
[383778849,1757112631897,-500.0,0.00041096,30]
[383778852,1757112631922,-500.0,0.00041096,30]
[383778856,1757112631947,-500.0,0.00041096,30]
[383778858,1757112631971,-500.0,0.00041096,30]
[383778859,1757112631997,-500.0,0.00041096,30]
[383778860,1757112632024,-408.93,0.00041194,2]
[383778862,1757112632049,-200.0,0.00041293,2]
[383778866,1757112632073,-522.5,0.00041293,2]
[383778869,1757112632099,-460.68,0.00041369,120]
[383778872,1757112632124,-1828.42,0.00041369,5]
[383778876,1757112632150,-608.55,0.00041444,30]
[383778880,1757112632175,-200.0,0.00041448,2]
[383778883,1757112632199,-159.0,0.000416,120]
[383778887,1757112632225,-460.68,0.00041643,120]
[383778890,1757112632253,-1828.42,0.00041643,5]
[383778891,1757112632279,-460.69746615,0.00041917,120]
[383778892,1757112632304,-1828.64114513,0.00041917,5]
[383778893,1757112632329,-3273.73217034,0.00042218,120]
[383778894,1757112632357,-408.93,0.00042406,2]
[383778895,1757112632382,-150.0,0.00042828,30]
[383778896,1757112632407,-300.00000002,0.00042828,30]
[383778897,1757112632432,-200.0,0.00042893,2]
[383778898,1757112632457,-500.0,0.00043006,10]
[383778899,1757112632483,-500.0,0.00043006,10]
[383778900,1757112632507,-500.0,0.00043006,10]
[383778901,1757112632533,-391.0,0.00043094,60]
[383778902,1757112632557,-668.6714,0.00043221,2]
[383778903,1757112632582,-6000.0,0.00043321,120]
[383778904,1757112632610,-408.93,0.00043617,2]
[383778905,1757112632636,-556.5185882,0.00043764,2]
[383778906,1757112632660,-400.0,0.00043863,120]
[383778907,1757112632687,-24526.5946402,0.00043864,2]
[383778908,1757112632711,-400.0,0.00043978,120]
[383778909,1757112632736,-400.0,0.00043978,120]
[383778910,1757112632761,-400.0,0.00043978,120]
[383778911,1757112632786,-400.0,0.00043978,120]
[383778912,1757112632812,-167.59,0.00043978,120]
[383778913,1757112632837,-400.0,0.00043978,120]
[383778914,1757112632861,-400.0,0.00043978,120]
[383778915,1757112632886,-400.0,0.00043978,120]
[383778916,1757112632912,-400.0,0.00043978,120]
[383778917,1757112632937,-484.37,0.00043978,120]
[383778918,1757112632961,-530.89,0.00043978,120]
[383778919,1757112632988,-231.35,0.00043978,120]
[383778920,1757112633013,-400.0,0.00043978,120]
[383778921,1757112633039,-400.0,0.00043978,120]
[383778922,1757112633065,-400.0,0.00043978,120]
[383778923,1757112633091,-400.0,0.00043978,120]
[383778924,1757112633119,-18646.6844234,0.00043978,2]
[383778925,1757112633146,-161.0,0.000441,120]
[383778926,1757112633173,-400.0,0.00044252,120]
[383778927,1757112633199,-400.0,0.00044252,120]
[383778928,1757112633224,-400.0,0.00044252,120]
[383778929,1757112633251,-400.0,0.00044252,120]
[383778930,1757112633276,-400.0,0.00044252,120]
[383778931,1757112633300,-400.0,0.00044252,120]
[383778932,1757112633326,-300.04,0.00044252,120]
[383778933,1757112633352,-363.04,0.00044252,120]
[383778934,1757112633378,-400.0,0.00044252,120]
[383778935,1757112633406,-400.0,0.00044252,120]
[383778936,1757112633432,-400.0,0.00044252,120]
[383778937,1757112633459,-400.0,0.00044252,120]
[383778938,1757112633484,-200.0,0.00044339,2]
[383778939,1757112633509,-425.51931025,0.000444,33]
[383778940,1757112633534,-412.6064715,0.00044526,120]
[383778941,1757112633559,-251.39,0.00044526,120]
[383778942,1757112633586,-442.00154289,0.00044526,120]
[383778943,1757112633612,-400.0,0.00044526,120]
[383778944,1757112633640,-400.0,0.00044526,120]
[383778945,1757112633667,-400.0,0.00044526,120]
[383778946,1757112633693,-400.0,0.00044526,120]
[383778947,1757112633719,-400.0,0.00044526,120]
[383778948,1757112633930,-400.0,0.00044526,120]
[383778949,1757112633958,-400.0,0.00044526,120]
[383778950,1757112633984,-325.87869489,0.000448,120]
[383778951,1757112634011,-502.63,0.000448,120]
[383778952,1757112634038,-400.0,0.000448,120]
[383778953,1757112634065,-307.31,0.000448,120]
[383778954,1757112634091,-437.63,0.000448,120]
[383778955,1757112634119,-393.9,0.000448,120]
[383778956,1757112634149,-435.91,0.000448,120]
[383778957,1757112634177,-408.93,0.00044829,2]
[383778958,1757112634202,-150.0,0.0004499,120]
[383778959,1757112634228,-2056.06838184,0.0004499,120]
[383778960,1757112634255,-360.0,0.0004499,120]
[383778961,1757112634281,-150.0,0.0004499,120]
[383778962,1757112634307,-7424.6,0.00045,120]
[383778963,1757112634333,-302.31,0.00045073,120]
[383778964,1757112634359,-686.44,0.00045162,2]
[383778965,1757112634385,-159.0,0.000452,120]
[383778966,1757112634411,-900.0,0.00045374,30]
[383778967,1757112634437,-171.0,0.00045588,120]
[383778968,1757112634463,-389.16,0.00045707,30]
[383778969,1757112634488,-500.0,0.00045802,2]
[383778970,1757112634513,-500.0,0.00045802,2]
[383778971,1757112634538,-500.0,0.00045802,2]
[383778972,1757112634564,-500.0,0.00045802,2]
[383778973,1757112634588,-500.0,0.00045802,2]
[383778974,1757112634612,-500.0,0.00045802,2]
[383778975,1757112634636,-500.0,0.00045802,2]
[383778976,1757112634662,-151.0,0.00045802,2]
[383778977,1757112634687,-266.74940099,0.00045802,2]
[383778978,1757112634710,-200.0,0.00045802,2]
[383778979,1757112634736,-167.85,0.00045816,2]
[383778980,1757112634760,-9698.08,0.0004583,2]
[383778981,1757112634787,-408.93,0.0004604,2]
[383778982,1757112634812,-238.08431337,0.00046048,30]
[383778983,1757112634837,-155.56,0.00046575,2]
[383778984,1757112634861,-283.23,0.00046822,30]
[383778985,1757112634887,-548.0,0.00047404,60]
[383778986,1757112634912,-666.0,0.00047747,15]
[383778987,1757112634938,-556.5185882,0.00048482,2]
[383778988,1757112634963,-6791.68618468,0.00048671,4]
[383778989,1757112634989,-24526.5946402,0.00048681,2]
[383778990,1757112635014,-7235.73948517,0.0004869,15]
[383778991,1757112635039,-3395.84309234,0.0004879,4]
[383778992,1757112635066,-159.0,0.000488,120]
[383778993,1757112635094,-168.81,0.000488,14]
[383778994,1757112635124,-167.85,0.0004887,2]
[383778995,1757112635151,-3453.90274222,0.00048873,21]
[383778996,1757112635181,-13583.3723694,0.00048901,4]